[Event "*** Titled Tuesday Blitz"]
[Site "Chess.com"]
[Date "2020.03.03"]
[Round "8"]
[White "ChessWarrior7197"]
[Black "Eltaj_Safarli"]
[Result "0-1"]
[WhiteElo "2914"]
[BlackElo "3053"]
[TimeControl "180+1"]
[EndTime "10:28:16 PST"]
[Termination "Eltaj_Safarli won by resignation"]

1. e4 {[%clk 0:03:00.9]} 1... e5 {[%clk 0:03:00.4]} 2. Nf3 {[%clk 0:03:00.7]}
2... Nc6 {[%clk 0:03:01]} 3. Bb5 {[%clk 0:03:00.6]} 3... a6 {[%clk 0:03:01.1]}
4. Ba4 {[%clk 0:03:00.2]} 4... d6 {[%clk 0:03:02]} 5. O-O {[%clk 0:02:56.2]}
5... Bd7 {[%clk 0:03:02.2]} 6. d4 {[%clk 0:02:54.1]} 6... exd4 {[%clk
0:03:03.1]} 7. Nxd4 {[%clk 0:02:49.5]} 7... b5 {[%clk 0:03:03.6]} 8. Nxc6 {[%clk
0:02:49.7]} 8... Bxc6 {[%clk 0:03:04.5]} 9. Bb3 {[%clk 0:02:49.6]} 9... Nf6
{[%clk 0:03:04.9]} 10. Nc3 {[%clk 0:02:49.8]} 10... Be7 {[%clk 0:03:04.3]} 11.
Re1 {[%clk 0:02:49.4]} 11... O-O {[%clk 0:03:04.2]} 12. Nd5 {[%clk 0:02:48.7]}
12... Nxd5 {[%clk 0:03:02]} 13. exd5 {[%clk 0:02:45.1]} 13... Bd7 {[%clk
0:03:02.1]} 14. Be3 {[%clk 0:02:44.8]} 14... Bf6 {[%clk 0:03:01.9]} 15. Bd4
{[%clk 0:02:45]} 15... Re8 {[%clk 0:02:58.7]} 16. Rxe8+ {[%clk 0:02:44]} 16...
Bxe8 {[%clk 0:02:59.6]} 17. a4 {[%clk 0:02:41.7]} 17... Bd7 {[%clk 0:02:55.2]}
18. axb5 {[%clk 0:02:37.8]} 18... Bxd4 {[%clk 0:02:52.7]} 19. Qxd4 {[%clk
0:02:32]} 19... axb5 {[%clk 0:02:53.2]} 20. Re1 {[%clk 0:02:30.9]} 20... h6
{[%clk 0:02:51.1]} 21. h3 {[%clk 0:02:30.5]} 21... Qg5 {[%clk 0:02:46.8]} 22.
Qc3 {[%clk 0:02:27.9]} 22... b4 {[%clk 0:02:44.5]} 23. Qe3 {[%clk 0:02:14.5]}
23... Re8 {[%clk 0:02:43.4]} 24. Qxe8+ {[%clk 0:02:11.6]} 24... Bxe8 {[%clk
0:02:43.2]} 25. Rxe8+ {[%clk 0:02:12.5]} 25... Kh7 {[%clk 0:02:44.1]} 26. Re3
{[%clk 0:02:12.1]} 26... Qf6 {[%clk 0:02:41.6]} 27. c3 {[%clk 0:02:11.8]} 27...
g6 {[%clk 0:02:37.5]} 28. Ba4 {[%clk 0:02:04.5]} 28... Qf5 {[%clk 0:02:35.6]}
29. Bc6 {[%clk 0:01:41.2]} 29... Qb1+ {[%clk 0:02:34.4]} 30. Kh2 {[%clk
0:01:41.2]} 30... b3 {[%clk 0:02:33.1]} 31. c4 {[%clk 0:01:18.8]} 31... Qxb2
{[%clk 0:02:23.4]} 32. Ba4 {[%clk 0:01:18.5]} 32... Qxf2 {[%clk 0:02:22.8]} 33.
Rf3 {[%clk 0:01:18.4]} 33... Qd4 {[%clk 0:02:16.9]} 34. Bxb3 {[%clk 0:01:14.6]}
34... Kg7 {[%clk 0:02:16.8]} 35. g4 {[%clk 0:01:00.7]} 35... h5 {[%clk
0:02:11.9]} 36. gxh5 {[%clk 0:00:59.7]} 36... gxh5 {[%clk 0:02:12.8]} 37. Kg2
{[%clk 0:00:57.9]} 37... h4 {[%clk 0:02:11.7]} 38. Kf1 {[%clk 0:00:57.3]} 38...
Qe4 {[%clk 0:02:05.1]} 39. Kf2 {[%clk 0:00:56.1]} 39... Kg6 {[%clk 0:02:04.7]}
40. Re3 {[%clk 0:00:51]} 40... Qf4+ {[%clk 0:02:04.4]} 41. Ke2 {[%clk
0:00:49.1]} 41... f5 {[%clk 0:02:00.6]} 42. Kd3 {[%clk 0:00:49.1]} 42... Qf2
{[%clk 0:01:58.4]} 43. Bd1 {[%clk 0:00:47.4]} 43... f4 {[%clk 0:01:55.8]} 44.
Re6+ {[%clk 0:00:37.9]} 44... Kg5 {[%clk 0:01:55.3]} 45. Bg4 {[%clk 0:00:36.2]}
45... f3 {[%clk 0:01:50.9]} 46. Re3 {[%clk 0:00:19.2]} 46... Kf4 {[%clk
0:01:50.6]} 47. Rxf3+ {[%clk 0:00:16.8]} 47... Qxf3+ {[%clk 0:01:51.5]} 48. Bxf3
{[%clk 0:00:17.2]} 48... Kxf3 {[%clk 0:01:52.4]} 49. Kd4 {[%clk 0:00:15.1]}
49... Kg3 {[%clk 0:01:52.3]} 50. Ke3 {[%clk 0:00:15.4]} 50... Kxh3 {[%clk
0:01:52.4]} 51. Kf3 {[%clk 0:00:15.9]} 51... Kh2 {[%clk 0:01:52.8]} 0-1

[Event "*** Titled Tuesday Blitz"]
[Site "Chess.com"]
[Date "2020.03.03"]
[Round "8"]
[White "Tjktiger"]
[Black "Ali_rastbod"]
[Result "1-0"]
[WhiteElo "2803"]
[BlackElo "2657"]
[TimeControl "180+1"]
[EndTime "10:28:21 PST"]
[Termination "Tjktiger won by resignation"]

1. c4 {[%clk 0:03:00.4]} 1... g6 {[%clk 0:02:57]} 2. d4 {[%clk 0:02:57.7]} 2...
Bg7 {[%clk 0:02:57.9]} 3. Nf3 {[%clk 0:02:56.9]} 3... d6 {[%clk 0:02:55.7]} 4.
Nc3 {[%clk 0:02:56.6]} 4... Bg4 {[%clk 0:02:47.5]} 5. g3 {[%clk 0:02:55.6]} 5...
Bxf3 {[%clk 0:02:45.7]} 6. exf3 {[%clk 0:02:56.5]} 6... e6 {[%clk 0:02:46]} 7.
d5 {[%clk 0:02:20.8]} 7... e5 {[%clk 0:02:43.6]} 8. Bh3 {[%clk 0:02:19.4]} 8...
Na6 {[%clk 0:02:40.4]} 9. O-O {[%clk 0:02:19.2]} 9... Ne7 {[%clk 0:02:33.8]} 10.
Qa4+ {[%clk 0:02:17.9]} 10... Kf8 {[%clk 0:02:31]} 11. f4 {[%clk 0:02:16.9]}
11... Nc5 {[%clk 0:02:26.3]} 12. Qc2 {[%clk 0:02:16.6]} 12... a5 {[%clk
0:02:26.5]} 13. fxe5 {[%clk 0:02:12.5]} 13... Bxe5 {[%clk 0:02:27.1]} 14. Bh6+
{[%clk 0:02:12.4]} 14... Bg7 {[%clk 0:02:26.6]} 15. Qd2 {[%clk 0:02:09.4]} 15...
Ng8 {[%clk 0:02:23.8]} 16. Bg5 {[%clk 0:01:57.5]} 16... Bf6 {[%clk 0:02:23.7]}
17. Be3 {[%clk 0:01:56.6]} 17... Kg7 {[%clk 0:02:22.9]} 18. Rfe1 {[%clk
0:01:51.4]} 18... h5 {[%clk 0:02:16.1]} 19. Rab1 {[%clk 0:01:47.3]} 19... Nh6
{[%clk 0:02:12.3]} 20. a3 {[%clk 0:01:40.3]} 20... Ng4 {[%clk 0:02:02.3]} 21.
Bxg4 {[%clk 0:01:39.6]} 21... hxg4 {[%clk 0:02:03.2]} 22. b4 {[%clk 0:01:39.3]}
22... axb4 {[%clk 0:02:01.9]} 23. axb4 {[%clk 0:01:39.3]} 23... Nd7 {[%clk
0:01:59.3]} 24. Bd4 {[%clk 0:01:25.4]} 24... Bxd4 {[%clk 0:01:59]} 25. Qxd4+
{[%clk 0:01:25.3]} 25... Qf6 {[%clk 0:01:59.9]} 26. Qxf6+ {[%clk 0:01:10.5]}
26... Kxf6 {[%clk 0:02:00.8]} 27. Re4 {[%clk 0:00:48.4]} 27... Ne5 {[%clk
0:01:57.9]} 28. Kg2 {[%clk 0:00:48.6]} 28... Ra3 {[%clk 0:01:35.1]} 29. Nb5
{[%clk 0:00:47]} 29... Ra2 {[%clk 0:01:29.4]} 30. Nxc7 {[%clk 0:00:43.2]} 30...
Nf3 {[%clk 0:01:20.2]} 31. Rh1 {[%clk 0:00:42]} 31... Kg5 {[%clk 0:01:09.4]} 32.
h4+ {[%clk 0:00:40.6]} 32... Kh5 {[%clk 0:00:58.2]} 33. Nb5 {[%clk 0:00:40.3]}
33... f5 {[%clk 0:00:54.6]} 34. Re7 {[%clk 0:00:40]} 34... Kh6 {[%clk
0:00:51.1]} 35. Nxd6 {[%clk 0:00:39.3]} 35... Rf8 {[%clk 0:00:48.3]} 36. Nf7+
{[%clk 0:00:39.1]} 36... Kh5 {[%clk 0:00:43.7]} 37. Ne5 {[%clk 0:00:36.4]} 37...
Kh6 {[%clk 0:00:44.1]} 38. Nxf3 {[%clk 0:00:35.5]} 38... gxf3+ {[%clk 0:00:45]}
39. Kxf3 {[%clk 0:00:36.4]} 1-0

[Event "*** Titled Tuesday Blitz"]
[Site "Chess.com"]
[Date "2020.03.03"]
[Round "8"]
[White "Terao90"]
[Black "dusanacns"]
[Result "0-1"]
[WhiteElo "2406"]
[BlackElo "2629"]
[TimeControl "180+1"]
[EndTime "10:28:23 PST"]
[Termination "dusanacns won on time"]

1. g3 {[%clk 0:03:00.9]} 1... d6 {[%clk 0:02:57.5]} 2. Bg2 {[%clk 0:03:01.4]}
2... Nf6 {[%clk 0:02:56.6]} 3. Nf3 {[%clk 0:03:00.4]} 3... g6 {[%clk 0:02:56.6]}
4. c4 {[%clk 0:02:58.6]} 4... Bg7 {[%clk 0:02:56.7]} 5. O-O {[%clk 0:02:59.5]}
5... O-O {[%clk 0:02:57.2]} 6. Nc3 {[%clk 0:02:49.1]} 6... Nc6 {[%clk 0:02:57]}
7. d3 {[%clk 0:02:42.7]} 7... e5 {[%clk 0:02:56.6]} 8. Rb1 {[%clk 0:02:38.5]}
8... a5 {[%clk 0:02:56.4]} 9. a3 {[%clk 0:02:37.4]} 9... h6 {[%clk 0:02:56.7]}
10. b4 {[%clk 0:02:37.5]} 10... axb4 {[%clk 0:02:57.6]} 11. axb4 {[%clk
0:02:38.4]} 11... Be6 {[%clk 0:02:58.3]} 12. b5 {[%clk 0:02:38]} 12... Ne7
{[%clk 0:02:58.6]} 13. Bd2 {[%clk 0:02:29.9]} 13... Qd7 {[%clk 0:02:58.3]} 14.
Ne1 {[%clk 0:02:26.6]} 14... Bh3 {[%clk 0:02:40.8]} 15. e4 {[%clk 0:01:58.7]}
15... Nh7 {[%clk 0:02:20.8]} 16. Nc2 {[%clk 0:01:53.2]} 16... Bxg2 {[%clk
0:02:17.3]} 17. Kxg2 {[%clk 0:01:54.1]} 17... f5 {[%clk 0:02:17.7]} 18. f3
{[%clk 0:01:44.4]} 18... f4 {[%clk 0:02:16.1]} 19. Nb4 {[%clk 0:01:41.6]} 19...
Ng5 {[%clk 0:02:14.3]} 20. g4 {[%clk 0:01:24.2]} 20... h5 {[%clk 0:02:09.2]} 21.
h3 {[%clk 0:01:23.3]} 21... Kf7 {[%clk 0:01:35]} 22. Rh1 {[%clk 0:01:20.2]}
22... Rh8 {[%clk 0:01:27.6]} 23. Qe2 {[%clk 0:01:10.9]} 23... c6 {[%clk
0:01:09.8]} 24. h4 {[%clk 0:00:53.8]} 24... Nxf3 {[%clk 0:01:09]} 25. Qxf3
{[%clk 0:00:52.3]} 25... hxg4 {[%clk 0:01:09.4]} 26. Qf2 {[%clk 0:00:48.2]}
26... Bf6 {[%clk 0:01:08.5]} 27. Qb6 {[%clk 0:00:43.2]} 27... Bxh4 {[%clk
0:00:52.9]} 28. bxc6 {[%clk 0:00:37.3]} 28... bxc6 {[%clk 0:00:51.5]} 29. c5
{[%clk 0:00:37.1]} 29... f3+ {[%clk 0:00:42.1]} 30. Kf1 {[%clk 0:00:30.3]} 30...
g3 {[%clk 0:00:40.7]} 0-1

[Event "*** Titled Tuesday Blitz"]
[Site "Chess.com"]
[Date "2020.03.03"]
[Round "8"]
[White "Arystanner"]
[Black "GadimbayliA"]
[Result "0-1"]
[WhiteElo "2738"]
[BlackElo "2908"]
[TimeControl "180+1"]
[EndTime "10:28:25 PST"]
[Termination "GadimbayliA won by resignation"]

1. e4 {[%clk 0:03:00.9]} 1... e6 {[%clk 0:02:56.6]} 2. d4 {[%clk 0:03:00.6]}
2... d5 {[%clk 0:02:57.5]} 3. Nd2 {[%clk 0:03:01]} 3... Nf6 {[%clk 0:02:54.5]}
4. e5 {[%clk 0:03:01.1]} 4... Nfd7 {[%clk 0:02:54.9]} 5. Bd3 {[%clk 0:03:01.6]}
5... c5 {[%clk 0:02:55.2]} 6. c3 {[%clk 0:03:02.1]} 6... Nc6 {[%clk 0:02:56.1]}
7. Ndf3 {[%clk 0:03:01.8]} 7... cxd4 {[%clk 0:02:55.2]} 8. cxd4 {[%clk
0:03:02.7]} 8... f6 {[%clk 0:02:55.9]} 9. exf6 {[%clk 0:03:03.2]} 9... Nxf6
{[%clk 0:02:56.8]} 10. Nh3 {[%clk 0:03:03.2]} 10... Bd6 {[%clk 0:02:57.7]} 11.
O-O {[%clk 0:03:03.1]} 11... O-O {[%clk 0:02:58.6]} 12. Re1 {[%clk 0:03:03.6]}
12... Qc7 {[%clk 0:02:56.6]} 13. Nhg5 {[%clk 0:03:03.7]} 13... g6 {[%clk
0:01:21.1]} 14. Nxe6 {[%clk 0:02:58.7]} 14... Bxe6 {[%clk 0:01:22]} 15. Rxe6
{[%clk 0:02:59.5]} 15... Ng4 {[%clk 0:01:22.6]} 16. h3 {[%clk 0:02:34.4]} 16...
Bh2+ {[%clk 0:01:19.6]} 17. Kf1 {[%clk 0:02:34.5]} 17... Nxf2 {[%clk 0:01:18.7]}
18. Kxf2 {[%clk 0:01:59.8]} 18... Qg3+ {[%clk 0:01:17.9]} 19. Ke3 {[%clk
0:01:42.9]} 19... Qf4+ {[%clk 0:00:52.4]} 20. Kf2 {[%clk 0:01:37.6]} 20... Qg3+
{[%clk 0:00:52.3]} 21. Ke3 {[%clk 0:01:37.4]} 21... Qxg2 {[%clk 0:00:52.7]} 22.
Be2 {[%clk 0:01:05.5]} 22... Rac8 {[%clk 0:00:29.6]} 23. Bd2 {[%clk 0:00:43.6]}
23... Qxh3 {[%clk 0:00:29]} 24. Rxc6 {[%clk 0:00:39]} 24... Rxc6 {[%clk
0:00:23]} 25. Bb4 {[%clk 0:00:33.8]} 25... Bf4+ {[%clk 0:00:22.2]} 26. Kf2
{[%clk 0:00:28.5]} 26... Qg3+ {[%clk 0:00:20.8]} 27. Kf1 {[%clk 0:00:27.9]}
27... Be3 {[%clk 0:00:18.2]} 0-1

[Event "*** Titled Tuesday Blitz"]
[Site "Chess.com"]
[Date "2020.03.03"]
[Round "8"]
[White "Irishchessman16"]
[Black "Redbandit87"]
[Result "1-0"]
[WhiteElo "2207"]
[BlackElo "2392"]
[TimeControl "180+1"]
[EndTime "10:28:28 PST"]
[Termination "Irishchessman16 won by checkmate"]

1. d4 {[%clk 0:03:00.9]} 1... d5 {[%clk 0:02:58.1]} 2. c4 {[%clk 0:02:54.8]}
2... e6 {[%clk 0:02:58.2]} 3. Nf3 {[%clk 0:02:53.6]} 3... Nf6 {[%clk 0:02:57.9]}
4. Nc3 {[%clk 0:02:41.6]} 4... Bb4 {[%clk 0:02:52]} 5. g3 {[%clk 0:02:37.1]}
5... O-O {[%clk 0:02:50.4]} 6. Bg2 {[%clk 0:02:36.8]} 6... dxc4 {[%clk
0:02:50.6]} 7. O-O {[%clk 0:02:34.4]} 7... c5 {[%clk 0:02:48.2]} 8. dxc5 {[%clk
0:02:31.5]} 8... Bxc3 {[%clk 0:02:47.8]} 9. bxc3 {[%clk 0:02:30.6]} 9... Na6
{[%clk 0:02:48]} 10. Ne5 {[%clk 0:02:29]} 10... Nxc5 {[%clk 0:02:45.5]} 11. Ba3
{[%clk 0:02:28.2]} 11... Qc7 {[%clk 0:02:38.7]} 12. Qd4 {[%clk 0:02:28]} 12...
Nfd7 {[%clk 0:01:29.8]} 13. Nxd7 {[%clk 0:02:16]} 13... Nxd7 {[%clk 0:01:30.7]}
14. Bxf8 {[%clk 0:02:14.7]} 14... Nxf8 {[%clk 0:01:30.5]} 15. Rfd1 {[%clk
0:02:12.6]} 15... Bd7 {[%clk 0:01:29.4]} 16. Rab1 {[%clk 0:02:09.5]} 16... Rb8
{[%clk 0:01:07.9]} 17. Qxa7 {[%clk 0:02:07.8]} 17... Qe5 {[%clk 0:00:53]} 18.
Rxb7 {[%clk 0:01:46.5]} 18... Rxb7 {[%clk 0:00:45.4]} 19. Qxb7 {[%clk
0:01:45.6]} 19... Qxc3 {[%clk 0:00:33.3]} 20. Qa8 {[%clk 0:01:26]} 20... Bb5
{[%clk 0:00:15.5]} 21. a4 {[%clk 0:01:21.1]} 21... Qb3 {[%clk 0:00:11.2]} 22.
Rd8 {[%clk 0:01:18.9]} 22... Qb4 {[%clk 0:00:11.2]} 23. axb5 {[%clk 0:01:17.3]}
23... c3 {[%clk 0:00:11.7]} 24. Qc8 {[%clk 0:00:50.1]} 24... g6 {[%clk
0:00:09.8]} 25. b6 {[%clk 0:00:47]} 25... c2 {[%clk 0:00:10.3]} 26. Qxc2 {[%clk
0:00:43.2]} 26... Qxb6 {[%clk 0:00:10.4]} 27. Qc8 {[%clk 0:00:42.5]} 27... Qb1+
{[%clk 0:00:10.7]} 28. Bf1 {[%clk 0:00:42]} 28... Qb4 {[%clk 0:00:11.6]} 29. Qc7
{[%clk 0:00:39.8]} 29... Qb5 {[%clk 0:00:04.9]} 30. Qe7 {[%clk 0:00:38.2]} 30...
Qf5 {[%clk 0:00:05.2]} 31. Qxf8# {[%clk 0:00:38]} 1-0

[Event "*** Titled Tuesday Blitz"]
[Site "Chess.com"]
[Date "2020.03.03"]
[Round "8"]
[White "adricalderon8"]
[Black "Vyacheslav_N"]
[Result "1-0"]
[WhiteElo "2433"]
[BlackElo "2555"]
[TimeControl "180+1"]
[EndTime "10:28:29 PST"]
[Termination "adricalderon8 won by resignation"]

1. e4 {[%clk 0:03:00.9]} 1... c5 {[%clk 0:02:59.2]} 2. Nf3 {[%clk 0:03:01]} 2...
Nc6 {[%clk 0:02:58.9]} 3. d4 {[%clk 0:03:01.6]} 3... cxd4 {[%clk 0:02:59.5]} 4.
Nxd4 {[%clk 0:03:02.5]} 4... Nf6 {[%clk 0:03:00.2]} 5. Nc3 {[%clk 0:03:02.2]}
5... e5 {[%clk 0:03:00.8]} 6. Ndb5 {[%clk 0:03:02.9]} 6... d6 {[%clk 0:03:01.3]}
7. Bg5 {[%clk 0:03:02.6]} 7... a6 {[%clk 0:03:01.3]} 8. Na3 {[%clk 0:03:03.3]}
8... b5 {[%clk 0:03:01.9]} 9. Bxf6 {[%clk 0:03:03.9]} 9... gxf6 {[%clk
0:03:01.9]} 10. Nd5 {[%clk 0:03:04.8]} 10... f5 {[%clk 0:03:02.4]} 11. Bd3
{[%clk 0:03:04]} 11... fxe4 {[%clk 0:02:53.7]} 12. Bxe4 {[%clk 0:03:03.6]} 12...
Bg7 {[%clk 0:02:54.4]} 13. Nf6+ {[%clk 0:02:49.1]} 13... Bxf6 {[%clk 0:02:48.1]}
14. Bxc6+ {[%clk 0:02:49.1]} 14... Bd7 {[%clk 0:02:48.7]} 15. Bxa8 {[%clk
0:02:48.4]} 15... Qxa8 {[%clk 0:02:49.6]} 16. Qf3 {[%clk 0:02:48.7]} 16... Qxf3
{[%clk 0:02:39.9]} 17. gxf3 {[%clk 0:02:48.5]} 17... Bc6 {[%clk 0:02:37.3]} 18.
Ke2 {[%clk 0:02:48]} 18... e4 {[%clk 0:02:34.5]} 19. c3 {[%clk 0:02:44.1]} 19...
exf3+ {[%clk 0:02:33.2]} 20. Kd3 {[%clk 0:02:44.2]} 20... Kd7 {[%clk 0:02:30.1]}
21. Rhg1 {[%clk 0:02:43]} 21... Re8 {[%clk 0:02:29.1]} 22. Rae1 {[%clk
0:02:42.1]} 22... Be5 {[%clk 0:02:28.8]} 23. h3 {[%clk 0:02:40.5]} 23... f5
{[%clk 0:02:29.1]} 24. Nc2 {[%clk 0:02:39.6]} 24... Be4+ {[%clk 0:02:29.2]} 25.
Kd2 {[%clk 0:02:38]} 25... Re7 {[%clk 0:02:19]} 26. Nd4 {[%clk 0:02:31.4]} 26...
Bf4+ {[%clk 0:02:15.7]} 27. Kd1 {[%clk 0:02:31.7]} 27... Rf7 {[%clk 0:02:12]}
28. h4 {[%clk 0:02:21.9]} 28... Bh2 {[%clk 0:01:42.2]} 29. Rg5 {[%clk
0:02:15.9]} 29... Be5 {[%clk 0:01:38.8]} 30. h5 {[%clk 0:02:09.7]} 30... b4
{[%clk 0:01:39.1]} 31. h6 {[%clk 0:02:08]} 31... bxc3 {[%clk 0:01:39.2]} 32.
bxc3 {[%clk 0:02:07.7]} 32... Kc7 {[%clk 0:01:34.3]} 33. Reg1 {[%clk 0:02:02.2]}
33... Kb6 {[%clk 0:01:34.1]} 34. Rg7 {[%clk 0:02:00.9]} 34... Bd5 {[%clk
0:01:22.5]} 35. Rxf7 {[%clk 0:01:54.7]} 35... Bxf7 {[%clk 0:01:22.4]} 36. Nxf5
{[%clk 0:01:53.1]} 36... Bxa2 {[%clk 0:01:22.4]} 37. Kc2 {[%clk 0:01:50.8]}
37... a5 {[%clk 0:01:16.5]} 38. Nd4 {[%clk 0:01:46.3]} 38... a4 {[%clk
0:01:13.8]} 39. Nxf3 {[%clk 0:01:45.8]} 39... Bf6 {[%clk 0:01:12.6]} 40. Nd4
{[%clk 0:01:43.2]} 40... Bd5 {[%clk 0:01:11.8]} 41. Rb1+ {[%clk 0:01:39]} 41...
Ka5 {[%clk 0:01:11.6]} 42. Kd3 {[%clk 0:01:37.7]} 42... Bf7 {[%clk 0:01:08.7]}
43. Rb7 {[%clk 0:01:35.7]} 43... Bg6+ {[%clk 0:01:08.1]} 44. Kc4 {[%clk
0:01:36.1]} 44... Bg5 {[%clk 0:00:58.9]} 45. Kd5 {[%clk 0:01:27.2]} 45... Bxh6
{[%clk 0:00:53.4]} 46. Kxd6 {[%clk 0:01:27.6]} 46... Bf8+ {[%clk 0:00:50.2]} 47.
Kd5 {[%clk 0:01:26.6]} 47... a3 {[%clk 0:00:49.8]} 48. Rb8 {[%clk 0:01:19.8]}
48... a2 {[%clk 0:00:35.2]} 49. Rxf8 {[%clk 0:01:19.5]} 49... Bf7+ {[%clk
0:00:24.7]} 50. Rxf7 {[%clk 0:01:18.8]} 50... a1=Q {[%clk 0:00:21.2]} 51. Nb3+
{[%clk 0:01:17.7]} 1-0

[Event "*** Titled Tuesday Blitz"]
[Site "Chess.com"]
[Date "2020.03.03"]
[Round "8"]
[White "Babas"]
[Black "Saloni1299"]
[Result "0-1"]
[WhiteElo "2363"]
[BlackElo "2081"]
[TimeControl "180+1"]
[EndTime "10:28:33 PST"]
[Termination "Saloni1299 won on time"]

1. d4 {[%clk 0:03:00]} 1... Nf6 {[%clk 0:02:55.7]} 2. Nf3 {[%clk 0:02:59.1]}
2... g6 {[%clk 0:02:53.9]} 3. Nc3 {[%clk 0:02:46.4]} 3... d5 {[%clk 0:02:51.4]}
4. Bf4 {[%clk 0:02:45.1]} 4... c6 {[%clk 0:02:50.4]} 5. e3 {[%clk 0:02:35.7]}
5... Bg7 {[%clk 0:02:47.4]} 6. Be2 {[%clk 0:02:30.2]} 6... Nbd7 {[%clk 0:02:47]}
7. O-O {[%clk 0:02:21.6]} 7... Nh5 {[%clk 0:02:45]} 8. Bg3 {[%clk 0:02:07.2]}
8... Nxg3 {[%clk 0:02:44.2]} 9. hxg3 {[%clk 0:02:06.4]} 9... O-O {[%clk
0:02:43.7]} 10. a4 {[%clk 0:02:00.1]} 10... e5 {[%clk 0:02:43.4]} 11. a5 {[%clk
0:01:48.6]} 11... a6 {[%clk 0:02:41.5]} 12. Na4 {[%clk 0:01:25.7]} 12... Rb8
{[%clk 0:02:38.3]} 13. c3 {[%clk 0:01:18.4]} 13... Qxa5 {[%clk 0:02:21.4]} 14.
b4 {[%clk 0:01:14.9]} 14... Qd8 {[%clk 0:02:18.4]} 15. Nc5 {[%clk 0:01:01.6]}
15... e4 {[%clk 0:01:52.6]} 16. Nd2 {[%clk 0:01:00]} 16... Nxc5 {[%clk
0:01:52.1]} 17. bxc5 {[%clk 0:00:48.8]} 17... b5 {[%clk 0:01:42.8]} 18. Nb3
{[%clk 0:00:38.6]} 18... Qc7 {[%clk 0:01:32.1]} 19. Na5 {[%clk 0:00:36.6]} 19...
f5 {[%clk 0:01:27.1]} 20. Qb3 {[%clk 0:00:33.8]} 20... Be6 {[%clk 0:01:24.8]}
21. Qb4 {[%clk 0:00:31.5]} 21... Bf6 {[%clk 0:01:22.5]} 22. Nb3 {[%clk
0:00:31.3]} 22... Ra8 {[%clk 0:01:21.3]} 23. Ra2 {[%clk 0:00:30.8]} 23... g5
{[%clk 0:01:07.2]} 24. Rfa1 {[%clk 0:00:24.3]} 24... f4 {[%clk 0:00:58]} 25. g4
{[%clk 0:00:15.6]} 25... fxe3 {[%clk 0:00:45.2]} 26. fxe3 {[%clk 0:00:16.5]}
26... Qg3 {[%clk 0:00:44.8]} 27. Bf1 {[%clk 0:00:09.7]} 27... Qxe3+ {[%clk
0:00:44.3]} 0-1

[Event "*** Titled Tuesday Blitz"]
[Site "Chess.com"]
[Date "2020.03.03"]
[Round "8"]
[White "pouya21"]
[Black "Parhamov"]
[Result "0-1"]
[WhiteElo "2767"]
[BlackElo "3055"]
[TimeControl "180+1"]
[EndTime "10:28:37 PST"]
[Termination "Parhamov won by resignation"]

1. e4 {[%clk 0:03:00.9]} 1... c5 {[%clk 0:02:59.4]} 2. Nf3 {[%clk 0:03:01.2]}
2... Nc6 {[%clk 0:02:59.7]} 3. Bb5 {[%clk 0:03:01.7]} 3... g6 {[%clk 0:02:59.7]}
4. O-O {[%clk 0:03:02]} 4... Bg7 {[%clk 0:02:18.2]} 5. c3 {[%clk 0:03:01.4]}
5... Nf6 {[%clk 0:02:18.1]} 6. Re1 {[%clk 0:03:00.3]} 6... Qb6 {[%clk
0:02:15.8]} 7. a4 {[%clk 0:02:59.7]} 7... O-O {[%clk 0:02:13.4]} 8. h3 {[%clk
0:02:58.8]} 8... Rd8 {[%clk 0:02:09.4]} 9. e5 {[%clk 0:02:56.9]} 9... Ne8 {[%clk
0:02:06.9]} 10. d4 {[%clk 0:02:55]} 10... cxd4 {[%clk 0:02:03.8]} 11. cxd4
{[%clk 0:02:55.9]} 11... d6 {[%clk 0:02:03.4]} 12. Bxc6 {[%clk 0:02:36.8]} 12...
bxc6 {[%clk 0:02:02.1]} 13. a5 {[%clk 0:02:36.9]} 13... Qc7 {[%clk 0:02:01]} 14.
Bf4 {[%clk 0:02:34.8]} 14... Rb8 {[%clk 0:01:57.6]} 15. Qc1 {[%clk 0:02:31.7]}
15... Bf5 {[%clk 0:01:54.4]} 16. Nc3 {[%clk 0:02:22.7]} 16... Qd7 {[%clk
0:01:51.5]} 17. Bh6 {[%clk 0:02:20.9]} 17... Bxh3 {[%clk 0:01:38.3]} 18. gxh3
{[%clk 0:01:58.2]} 18... Qxh3 {[%clk 0:01:37.8]} 19. Bxg7 {[%clk 0:01:58.3]}
19... Qg4+ {[%clk 0:01:37.4]} 20. Kf1 {[%clk 0:01:57.4]} 20... Nxg7 {[%clk
0:01:36.8]} 21. Qe3 {[%clk 0:01:50.6]} 21... Nf5 {[%clk 0:01:36.6]} 22. Qe4
{[%clk 0:01:48.6]} 22... Qh3+ {[%clk 0:01:36.1]} 23. Kg1 {[%clk 0:01:48.3]}
23... Rxb2 {[%clk 0:01:35.4]} 24. Ra2 {[%clk 0:01:38.7]} 24... Rb3 {[%clk
0:01:32.7]} 25. Rc2 {[%clk 0:01:38.2]} 25... d5 {[%clk 0:01:31.5]} 26. Qf4
{[%clk 0:01:37]} 26... c5 {[%clk 0:01:27.4]} 27. e6 {[%clk 0:01:24.7]} 27... f6
{[%clk 0:01:26.1]} 28. Rb1 {[%clk 0:01:16.6]} 28... Rxb1+ {[%clk 0:01:20.1]} 29.
Nxb1 {[%clk 0:01:17.1]} 29... c4 {[%clk 0:01:19.6]} 30. Nbd2 {[%clk 0:01:15.4]}
30... Rd6 {[%clk 0:01:19.3]} 31. Qh2 {[%clk 0:01:11.3]} 31... Qxh2+ {[%clk
0:01:17.2]} 32. Kxh2 {[%clk 0:01:12.2]} 32... g5 {[%clk 0:01:17.6]} 33. Nb1
{[%clk 0:01:07.6]} 33... g4 {[%clk 0:01:14.7]} 34. Nfd2 {[%clk 0:01:07.5]} 34...
Nxd4 {[%clk 0:01:14.8]} 35. Rb2 {[%clk 0:01:07.7]} 35... Nxe6 {[%clk 0:01:14.3]}
36. Nc3 {[%clk 0:01:04.8]} 36... d4 {[%clk 0:01:10.3]} 37. Rb8+ {[%clk
0:01:04.6]} 37... Rd8 {[%clk 0:01:07.1]} 38. Rxd8+ {[%clk 0:01:03.7]} 38... Nxd8
{[%clk 0:01:08]} 39. Nb5 {[%clk 0:01:03.8]} 39... c3 {[%clk 0:01:04.6]} 40. Nb3
{[%clk 0:01:03.9]} 40... e5 {[%clk 0:01:02.3]} 41. Nxa7 {[%clk 0:01:02.6]} 41...
d3 {[%clk 0:00:54.9]} 42. Nb5 {[%clk 0:01:01.3]} 42... c2 {[%clk 0:00:54.4]} 43.
a6 {[%clk 0:00:59]} 43... Nc6 {[%clk 0:00:50.2]} 0-1